[Event "Early-Titled-Tuesday-Blitz-March-26-2024"]
[Site "Chess.com"]
[Date "2024.03.26"]
[Round "4"]
[White "PavelShkapenko"]
[Black "KanalSzachowy"]
[Result "1-0"]
[WhiteElo "2766"]
[BlackElo "2439"]
[TimeControl "180+1"]
[EndTime "8:38:43 PDT"]
[Termination "PavelShkapenko won on time"]

1. e4 {[%clk 0:03:00.9]} 1... c5 {[%clk 0:02:58.7]} 2. Nc3 {[%clk 0:03:00.1]}
2... a6 {[%clk 0:02:58.5]} 3. g3 {[%clk 0:02:59.1]} 3... b5 {[%clk 0:02:58.4]}
4. Bg2 {[%clk 0:02:59.3]} 4... Bb7 {[%clk 0:02:59]} 5. d3 {[%clk 0:02:59.9]}
5... e6 {[%clk 0:02:59.2]} 6. Nh3 {[%clk 0:02:58.8]} 6... Nf6 {[%clk 0:02:52]}
7. O-O {[%clk 0:02:38.5]} 7... d6 {[%clk 0:02:41.9]} 8. f4 {[%clk 0:02:34]} 8...
Nbd7 {[%clk 0:02:41.6]} 9. Qe2 {[%clk 0:02:28.9]} 9... h5 {[%clk 0:02:31.2]} 10.
f5 {[%clk 0:02:19.1]} 10... e5 {[%clk 0:02:11.7]} 11. Nd5 {[%clk 0:02:02]} 11...
Bxd5 {[%clk 0:01:55.9]} 12. exd5 {[%clk 0:02:02.9]} 12... Qb6 {[%clk 0:01:55.2]}
13. c4 {[%clk 0:02:03.2]} 13... Ng4 {[%clk 0:01:50.5]} 14. Ng5 {[%clk
0:01:59.1]} 14... Be7 {[%clk 0:01:34.3]} 15. Ne6 {[%clk 0:01:51.5]} 15... fxe6
{[%clk 0:00:54.3]} 16. dxe6 {[%clk 0:01:51]} 16... Rd8 {[%clk 0:00:54.4]} 17.
exd7+ {[%clk 0:01:49.6]} 17... Rxd7 {[%clk 0:00:54]} 18. h3 {[%clk 0:01:46]}
18... Nf6 {[%clk 0:00:53.5]} 19. Bg5 {[%clk 0:01:44.1]} 19... bxc4 {[%clk
0:00:49.9]} 20. dxc4 {[%clk 0:01:43.7]} 20... Qb4 {[%clk 0:00:30.2]} 21. b3
{[%clk 0:01:40.2]} 21... Rc7 {[%clk 0:00:24.5]} 22. Rad1 {[%clk 0:01:34.2]}
22... Qc3 {[%clk 0:00:13.5]} 23. Rd3 {[%clk 0:01:33.2]} 23... Qa5 {[%clk
0:00:10.5]} 24. Rfd1 {[%clk 0:01:33.2]} 24... Qb6 {[%clk 0:00:09.4]} 25. Bxf6
{[%clk 0:01:11.5]} 25... gxf6 {[%clk 0:00:08.9]} 26. Bd5 {[%clk 0:01:12.2]}
26... h4 {[%clk 0:00:07.8]} 27. gxh4 {[%clk 0:00:54.8]} 27... Rxh4 {[%clk
0:00:07.6]} 28. Rg3 {[%clk 0:00:55.3]} 28... Rh8 {[%clk 0:00:07.3]} 29. Qg2
{[%clk 0:00:54.3]} 29... Bf8 {[%clk 0:00:05.6]} 30. Be6 {[%clk 0:00:53]} 30...
Rch7 {[%clk 0:00:05]} 31. Qa8+ {[%clk 0:00:43.9]} 31... Qd8 {[%clk 0:00:04]} 32.
Qc6+ {[%clk 0:00:43.7]} 32... Ke7 {[%clk 0:00:03.7]} 33. Rdd3 {[%clk 0:00:30.9]}
33... Bh6 {[%clk 0:00:01.7]} 34. Kg2 {[%clk 0:00:21]} 34... Bf4 {[%clk
0:00:02.1]} 35. Rg4 {[%clk 0:00:21.7]} 35... Rxh3 {[%clk 0:00:02.3]} 36. Rxh3
{[%clk 0:00:20.8]} 36... Rxh3 {[%clk 0:00:02.6]} 37. Kxh3 {[%clk 0:00:21.4]}
37... Qh8+ {[%clk 0:00:03.3]} 38. Rh4 {[%clk 0:00:22.1]} 38... Qg7 {[%clk
0:00:03.9]} 39. Qb7+ {[%clk 0:00:22.3]} 39... Kf8 {[%clk 0:00:04.1]} 40. Qxg7+
{[%clk 0:00:22.9]} 40... Kxg7 {[%clk 0:00:05]} 41. Rg4+ {[%clk 0:00:23.2]} 41...
Kh6 {[%clk 0:00:05.3]} 42. Kg2 {[%clk 0:00:23]} 42... Bg5 {[%clk 0:00:04.7]} 43.
Kf3 {[%clk 0:00:23.1]} 43... e4+ {[%clk 0:00:05.6]} 44. Kxe4 {[%clk 0:00:22.2]}
44... Kh5 {[%clk 0:00:06.5]} 45. Rg1 {[%clk 0:00:22.7]} 45... Bd2 {[%clk
0:00:06.2]} 46. Kd5 {[%clk 0:00:22.9]} 46... Bf4 {[%clk 0:00:06]} 47. Rg6 {[%clk
0:00:22.8]} 47... Be5 {[%clk 0:00:06.5]} 48. a3 {[%clk 0:00:21.9]} 48... a5
{[%clk 0:00:06.3]} 49. Kc6 {[%clk 0:00:21.3]} 1-0

[Event "Early-Titled-Tuesday-Blitz-March-26-2024"]
[Site "Chess.com"]
[Date "2024.03.26"]
[Round "4"]
[White "Tolya2"]
[Black "Tol_Tol"]
[Result "0-1"]
[WhiteElo "2490"]
[BlackElo "2353"]
[TimeControl "180+1"]
[EndTime "8:38:43 PDT"]
[Termination "Tol_Tol won by checkmate"]

1. Nf3 {[%clk 0:02:58.1]} 1... Nf6 {[%clk 0:03:00.3]} 2. c4 {[%clk 0:02:56.2]}
2... g6 {[%clk 0:03:00.7]} 3. Nc3 {[%clk 0:02:54.5]} 3... Bg7 {[%clk 0:03:01.2]}
4. e4 {[%clk 0:02:54.1]} 4... d6 {[%clk 0:03:01.8]} 5. d4 {[%clk 0:02:52.6]}
5... O-O {[%clk 0:03:02.2]} 6. Be2 {[%clk 0:02:51]} 6... e5 {[%clk 0:03:02.6]}
7. dxe5 {[%clk 0:02:50.5]} 7... dxe5 {[%clk 0:03:02.7]} 8. Qxd8 {[%clk
0:02:50.1]} 8... Rxd8 {[%clk 0:03:03.6]} 9. Bg5 {[%clk 0:02:49.2]} 9... Re8
{[%clk 0:03:03.7]} 10. O-O-O {[%clk 0:02:48.4]} 10... c6 {[%clk 0:03:02.1]} 11.
Nxe5 {[%clk 0:02:47.7]} 11... Rxe5 {[%clk 0:02:57]} 12. Rd8+ {[%clk 0:02:46.1]}
12... Re8 {[%clk 0:02:55.4]} 13. Bxf6 {[%clk 0:02:46.1]} 13... Rxd8 {[%clk
0:02:55.8]} 14. Bxd8 {[%clk 0:02:45.9]} 14... Na6 {[%clk 0:02:51.3]} 15. Be7
{[%clk 0:02:45.7]} 15... Be6 {[%clk 0:02:34.2]} 16. Kc2 {[%clk 0:02:45.3]} 16...
Re8 {[%clk 0:02:31.1]} 17. Bd6 {[%clk 0:02:44.9]} 17... f5 {[%clk 0:02:13.6]}
18. f3 {[%clk 0:02:43.5]} 18... Bxc3 {[%clk 0:01:50.5]} 19. Kxc3 {[%clk
0:02:40.7]} 19... fxe4 {[%clk 0:01:50.8]} 20. fxe4 {[%clk 0:02:40.3]} 20... c5
{[%clk 0:01:49.9]} 21. e5 {[%clk 0:02:38]} 21... b6 {[%clk 0:01:44.2]} 22. Rd1
{[%clk 0:02:33.1]} 22... Nb4 {[%clk 0:01:41.3]} 23. Bf3 {[%clk 0:02:21.4]} 23...
Nxa2+ {[%clk 0:01:39.2]} 24. Kb3 {[%clk 0:02:21.1]} 24... Nb4 {[%clk 0:01:38.2]}
25. Ra1 {[%clk 0:02:14.9]} 25... a5 {[%clk 0:01:30.2]} 26. Rd1 {[%clk
0:02:13.3]} 26... b5 {[%clk 0:01:13.3]} 27. Bxc5 {[%clk 0:02:06.8]} 27... Bxc4+
{[%clk 0:01:11.6]} 28. Kc3 {[%clk 0:02:04.5]} 28... Rc8 {[%clk 0:00:47.8]} 29.
Bxb4 {[%clk 0:01:46]} 29... Be2+ {[%clk 0:00:46.6]} 30. Kd4 {[%clk 0:01:40.6]}
30... Bxd1 {[%clk 0:00:46.5]} 31. Bd5+ {[%clk 0:01:40.4]} 31... Kg7 {[%clk
0:00:43.1]} 32. Bxa5 {[%clk 0:01:40.3]} 32... Be2 {[%clk 0:00:37.2]} 33. Bc3
{[%clk 0:01:25.3]} 33... Bc4 {[%clk 0:00:33.1]} 34. Be4 {[%clk 0:01:19.5]} 34...
Kf7 {[%clk 0:00:31.6]} 35. g4 {[%clk 0:01:15.7]} 35... Ke6 {[%clk 0:00:31.5]}
36. Ke3 {[%clk 0:01:12.6]} 36... Bd5 {[%clk 0:00:17.2]} 37. Bd3 {[%clk
0:01:10.5]} 37... Rb8 {[%clk 0:00:16.7]} 38. b4 {[%clk 0:01:08.5]} 38... Bc4
{[%clk 0:00:15.1]} 39. Be4 {[%clk 0:01:07.8]} 39... Rc8 {[%clk 0:00:15.1]} 40.
h4 {[%clk 0:01:03.7]} 40... Bd5 {[%clk 0:00:15.1]} 41. Bxd5+ {[%clk 0:00:59.4]}
41... Kxd5 {[%clk 0:00:16]} 42. Be1 {[%clk 0:00:56.9]} 42... Rc4 {[%clk
0:00:16.3]} 43. g5 {[%clk 0:00:54.3]} 43... Kxe5 {[%clk 0:00:16.5]} 44. Kd3
{[%clk 0:00:54.1]} 44... Kf5 {[%clk 0:00:16.5]} 45. Bf2 {[%clk 0:00:52.9]} 45...
Kg4 {[%clk 0:00:16.6]} 46. Be1 {[%clk 0:00:51.6]} 46... Kh5 {[%clk 0:00:16.6]}
47. Bf2 {[%clk 0:00:50.4]} 47... Rxh4 {[%clk 0:00:16.5]} 48. Bc5 {[%clk
0:00:46.3]} 48... Kxg5 {[%clk 0:00:11.5]} 49. Be7+ {[%clk 0:00:46.1]} 49... Kg4
{[%clk 0:00:11.9]} 50. Ke3 {[%clk 0:00:46.3]} 50... Rh3+ {[%clk 0:00:11.3]} 51.
Kf2 {[%clk 0:00:46.4]} 51... Rc3 {[%clk 0:00:11.5]} 52. Bf6 {[%clk 0:00:46.1]}
52... Rc4 {[%clk 0:00:11.7]} 53. Be7 {[%clk 0:00:45.9]} 53... h5 {[%clk
0:00:12.4]} 54. Bd6 {[%clk 0:00:45.7]} 54... h4 {[%clk 0:00:11.7]} 55. Kg2
{[%clk 0:00:45.8]} 55... Rc2+ {[%clk 0:00:11.6]} 56. Kf1 {[%clk 0:00:46.4]}
56... Kf3 {[%clk 0:00:11.1]} 57. Ke1 {[%clk 0:00:46.2]} 57... g5 {[%clk
0:00:11.4]} 58. Kd1 {[%clk 0:00:46.1]} 58... Rg2 {[%clk 0:00:08.9]} 59. Ke1
{[%clk 0:00:44.7]} 59... h3 {[%clk 0:00:09.1]} 60. Bc7 {[%clk 0:00:44]} 60... g4
{[%clk 0:00:09.4]} 61. Bd6 {[%clk 0:00:43.4]} 61... g3 {[%clk 0:00:09.8]} 62.
Kf1 {[%clk 0:00:41.8]} 62... h2 {[%clk 0:00:09.7]} 63. Bxg3 {[%clk 0:00:39.6]}
63... Kxg3 {[%clk 0:00:08.6]} 64. Ke1 {[%clk 0:00:38.7]} 64... h1=Q# {[%clk
0:00:08.9]} 0-1

[Event "Early-Titled-Tuesday-Blitz-March-26-2024"]
[Site "Chess.com"]
[Date "2024.03.26"]
[Round "4"]
[White "ajedrezsinlimites"]
[Black "Chessmissile07"]
[Result "1/2-1/2"]
[WhiteElo "2638"]
[BlackElo "2918"]
[TimeControl "180+1"]
[EndTime "8:38:46 PDT"]
[Termination "Game drawn - insufficient material"]

1. e4 {[%clk 0:03:00.9]} 1... a6 {[%clk 0:03:00.9]} 2. d4 {[%clk 0:03:00.4]}
2... e6 {[%clk 0:03:01.2]} 3. Nc3 {[%clk 0:02:59.6]} 3... d5 {[%clk 0:02:58.8]}
4. g3 {[%clk 0:02:58.1]} 4... Bb4 {[%clk 0:02:50.9]} 5. Bg2 {[%clk 0:02:57]}
5... dxe4 {[%clk 0:02:49.6]} 6. Bxe4 {[%clk 0:02:55.4]} 6... Nf6 {[%clk
0:02:48.6]} 7. Bg2 {[%clk 0:02:55.1]} 7... c5 {[%clk 0:02:42]} 8. Ne2 {[%clk
0:02:49.6]} 8... Nc6 {[%clk 0:02:34.8]} 9. Be3 {[%clk 0:02:35.9]} 9... Nd5
{[%clk 0:02:12]} 10. O-O {[%clk 0:02:29]} 10... Nxe3 {[%clk 0:02:09.6]} 11. fxe3
{[%clk 0:02:27.3]} 11... cxd4 {[%clk 0:02:09.6]} 12. exd4 {[%clk 0:02:26]} 12...
O-O {[%clk 0:02:09.8]} 13. Ne4 {[%clk 0:02:25.1]} 13... Bd7 {[%clk 0:01:57.8]}
14. c3 {[%clk 0:02:22.4]} 14... Be7 {[%clk 0:01:57.4]} 15. Qd2 {[%clk
0:02:09.8]} 15... Rc8 {[%clk 0:01:56.1]} 16. Rad1 {[%clk 0:02:09]} 16... Qa5
{[%clk 0:01:55]} 17. a3 {[%clk 0:02:08.2]} 17... Qb6 {[%clk 0:01:50.6]} 18. Kh1
{[%clk 0:02:07.3]} 18... Na5 {[%clk 0:01:49.5]} 19. Rb1 {[%clk 0:01:54]} 19...
Nc4 {[%clk 0:01:45.2]} 20. Qc1 {[%clk 0:01:53.9]} 20... Bc6 {[%clk 0:01:38.4]}
21. b4 {[%clk 0:01:53.1]} 21... h6 {[%clk 0:01:11.6]} 22. h3 {[%clk 0:01:49.2]}
22... f5 {[%clk 0:01:09.8]} 23. Nc5 {[%clk 0:01:47]} 23... Bg5 {[%clk
0:01:01.6]} 24. Nf4 {[%clk 0:01:44.2]} 24... Bxg2+ {[%clk 0:00:54.9]} 25. Kxg2
{[%clk 0:01:43.9]} 25... e5 {[%clk 0:00:54.9]} 26. dxe5 {[%clk 0:01:37.7]} 26...
Nxe5 {[%clk 0:00:55.8]} 27. h4 {[%clk 0:01:29]} 27... Qc6+ {[%clk 0:00:55.5]}
28. Kh3 {[%clk 0:01:26.9]} 28... Bxf4 {[%clk 0:00:46.6]} 29. Qxf4 {[%clk
0:01:25.1]} 29... Ng6 {[%clk 0:00:43.4]} 30. Qf3 {[%clk 0:01:11.3]} 30... Qxf3
{[%clk 0:00:27.2]} 31. Rxf3 {[%clk 0:01:10.9]} 31... Ne5 {[%clk 0:00:28.1]} 32.
Re3 {[%clk 0:01:05.6]} 32... Nc4 {[%clk 0:00:25.1]} 33. Re7 {[%clk 0:01:05.5]}
33... Nxa3 {[%clk 0:00:20.1]} 34. Rd1 {[%clk 0:01:02.8]} 34... Rf7 {[%clk
0:00:19.8]} 35. Rxf7 {[%clk 0:01:02.5]} 35... Kxf7 {[%clk 0:00:20.7]} 36. Rd7+
{[%clk 0:01:02.4]} 36... Kg8 {[%clk 0:00:21.1]} 37. Rxb7 {[%clk 0:01:02.1]}
37... Nb5 {[%clk 0:00:21.5]} 38. Nxa6 {[%clk 0:00:59.7]} 38... Nxc3 {[%clk
0:00:21.8]} 39. Nc7 {[%clk 0:00:58.2]} 39... Rd8 {[%clk 0:00:18.2]} 40. Ne6
{[%clk 0:00:57.1]} 40... Rd3 {[%clk 0:00:17]} 41. Rxg7+ {[%clk 0:00:56.6]} 41...
Kh8 {[%clk 0:00:17.5]} 42. Rf7 {[%clk 0:00:57]} 42... Ne4 {[%clk 0:00:15.8]} 43.
Rxf5 {[%clk 0:00:53.8]} 43... Rxg3+ {[%clk 0:00:15.8]} 44. Kh2 {[%clk
0:00:53.4]} 44... Rb3 {[%clk 0:00:16.7]} 45. Rf4 {[%clk 0:00:53.1]} 45... Nd6
{[%clk 0:00:13.8]} 46. Nc5 {[%clk 0:00:51.5]} 46... Rc3 {[%clk 0:00:12.8]} 47.
Ne6 {[%clk 0:00:49.6]} 47... Rb3 {[%clk 0:00:12.5]} 48. Kg2 {[%clk 0:00:48.8]}
48... Kh7 {[%clk 0:00:11.6]} 49. h5 {[%clk 0:00:47.6]} 49... Kh8 {[%clk
0:00:09.7]} 50. Kf2 {[%clk 0:00:45.6]} 50... Rh3 {[%clk 0:00:09.1]} 51. Rd4
{[%clk 0:00:45.1]} 51... Nf5 {[%clk 0:00:07.3]} 52. Rd5 {[%clk 0:00:45.3]} 52...
Ne3 {[%clk 0:00:05.6]} 53. Rc5 {[%clk 0:00:43.3]} 53... Ng4+ {[%clk 0:00:04.4]}
54. Kg2 {[%clk 0:00:42.9]} 54... Rb3 {[%clk 0:00:04.9]} 55. b5 {[%clk
0:00:41.9]} 55... Nf6 {[%clk 0:00:05.5]} 56. Nd4 {[%clk 0:00:41.6]} 56... Rb4
{[%clk 0:00:04.9]} 57. Nf5 {[%clk 0:00:41.4]} 57... Nxh5 {[%clk 0:00:04.5]} 58.
Nxh6 {[%clk 0:00:41.7]} 58... Nf4+ {[%clk 0:00:04.9]} 59. Kf3 {[%clk 0:00:42]}
59... Nd3 {[%clk 0:00:05.4]} 60. Rd5 {[%clk 0:00:41]} 60... Nf4 {[%clk
0:00:05.1]} 61. Rf5 {[%clk 0:00:41.2]} 61... Ne6 {[%clk 0:00:05.4]} 62. Re5
{[%clk 0:00:39.4]} 62... Nd4+ {[%clk 0:00:05.7]} 63. Ke3 {[%clk 0:00:39.5]}
63... Rxb5 {[%clk 0:00:05.7]} 64. Kxd4 {[%clk 0:00:36.6]} 64... Rxe5 {[%clk
0:00:02.1]} 65. Kxe5 {[%clk 0:00:37.5]} 1/2-1/2

[Event "Early-Titled-Tuesday-Blitz-March-26-2024"]
[Site "Chess.com"]
[Date "2024.03.26"]
[Round "4"]
[White "Bada_norovsambuu"]
[Black "amanjazu"]
[Result "0-1"]
[WhiteElo "2211"]
[BlackElo "2548"]
[TimeControl "180+1"]
[EndTime "8:38:46 PDT"]
[Termination "amanjazu won on time"]

1. Nf3 {[%clk 0:03:00.9]} 1... f5 {[%clk 0:02:52]} 2. d4 {[%clk 0:03:00.9]} 2...
Nf6 {[%clk 0:02:52.2]} 3. c4 {[%clk 0:03:00.2]} 3... g6 {[%clk 0:02:52.5]} 4. g3
{[%clk 0:03:00.2]} 4... Bg7 {[%clk 0:02:52.9]} 5. Bg2 {[%clk 0:03:00.2]} 5...
O-O {[%clk 0:02:53.2]} 6. O-O {[%clk 0:03:00.4]} 6... d6 {[%clk 0:02:53.1]} 7.
Nc3 {[%clk 0:03:01.3]} 7... Qe8 {[%clk 0:02:53.3]} 8. d5 {[%clk 0:02:58]} 8...
Na6 {[%clk 0:02:53.3]} 9. Nd4 {[%clk 0:02:55.9]} 9... Bd7 {[%clk 0:02:53.4]} 10.
a3 {[%clk 0:02:53.1]} 10... c6 {[%clk 0:02:49.9]} 11. b4 {[%clk 0:02:48.1]}
11... Rc8 {[%clk 0:02:35.2]} 12. Bb2 {[%clk 0:02:46.2]} 12... Nc7 {[%clk
0:01:33.3]} 13. Rc1 {[%clk 0:02:32]} 13... g5 {[%clk 0:01:23.5]} 14. e4 {[%clk
0:02:21.9]} 14... f4 {[%clk 0:01:18.3]} 15. Nce2 {[%clk 0:02:09.1]} 15... Ng4
{[%clk 0:00:49.3]} 16. Qd2 {[%clk 0:01:25.6]} 16... Qh5 {[%clk 0:00:40.5]} 17.
h3 {[%clk 0:01:18.3]} 17... Ne5 {[%clk 0:00:34.2]} 18. Kh2 {[%clk 0:01:17.4]}
18... f3 {[%clk 0:00:32.8]} 19. Nxf3 {[%clk 0:01:02.9]} 19... Nxf3+ {[%clk
0:00:30.7]} 20. Bxf3 {[%clk 0:01:02.5]} 20... Rxf3 {[%clk 0:00:29.8]} 21. Bxg7
{[%clk 0:00:57.9]} 21... Kxg7 {[%clk 0:00:25.9]} 22. Ng1 {[%clk 0:00:57.6]}
22... Rff8 {[%clk 0:00:19.3]} 23. f4 {[%clk 0:00:55.3]} 23... Bxh3 {[%clk
0:00:18.2]} 24. Nxh3 {[%clk 0:00:54.1]} 24... g4 {[%clk 0:00:18.6]} 25. Qg2
{[%clk 0:00:52.3]} 25... cxd5 {[%clk 0:00:18.4]} 26. cxd5 {[%clk 0:00:51.1]}
26... gxh3 {[%clk 0:00:19]} 27. Qb2+ {[%clk 0:00:47.9]} 27... Kg8 {[%clk
0:00:18.9]} 28. e5 {[%clk 0:00:43.1]} 28... Nxd5 {[%clk 0:00:18.5]} 29. Qa2
{[%clk 0:00:35.7]} 29... e6 {[%clk 0:00:18]} 30. exd6 {[%clk 0:00:34.1]} 30...
Rcd8 {[%clk 0:00:12.7]} 31. f5 {[%clk 0:00:29.8]} 31... Rxf5 {[%clk 0:00:11.8]}
32. Rxf5 {[%clk 0:00:28.3]} 32... Qxf5 {[%clk 0:00:12.7]} 33. Qe2 {[%clk
0:00:26.3]} 33... Kh8 {[%clk 0:00:10.3]} 34. Rf1 {[%clk 0:00:25.1]} 34... Qg6
{[%clk 0:00:09.2]} 35. Qe5+ {[%clk 0:00:24]} 35... Kg8 {[%clk 0:00:09.6]} 36. d7
{[%clk 0:00:16]} 36... Ne7 {[%clk 0:00:05.6]} 37. Qc7 {[%clk 0:00:14.9]} 37...
Nc6 {[%clk 0:00:06.5]} 38. Qd6 {[%clk 0:00:14.7]} 38... Qf7 {[%clk 0:00:06.4]}
39. Rd1 {[%clk 0:00:13.4]} 39... Qe7 {[%clk 0:00:06.4]} 40. Qd3 {[%clk
0:00:11.8]} 40... e5 {[%clk 0:00:06.7]} 41. Qd5+ {[%clk 0:00:11.3]} 41... Kh8
{[%clk 0:00:07.2]} 42. Rd2 {[%clk 0:00:09.1]} 42... e4 {[%clk 0:00:07.7]} 43.
Rd1 {[%clk 0:00:05.7]} 43... e3 {[%clk 0:00:07.8]} 44. Re1 {[%clk 0:00:04.9]}
44... Rxd7 {[%clk 0:00:08.2]} 45. Qh5 {[%clk 0:00:01.3]} 45... Rd2+ {[%clk
0:00:08.3]} 0-1

[Event "Early-Titled-Tuesday-Blitz-March-26-2024"]
[Site "Chess.com"]
[Date "2024.03.26"]
[Round "4"]
[White "Marielchessy"]
[Black "verrbaa"]
[Result "1-0"]
[WhiteElo "2379"]
[BlackElo "2485"]
[TimeControl "180+1"]
[EndTime "8:38:47 PDT"]
[Termination "Marielchessy won on time"]

1. e4 {[%clk 0:03:00.9]} 1... c5 {[%clk 0:02:59.5]} 2. Nf3 {[%clk 0:03:00.7]}
2... e6 {[%clk 0:02:59.8]} 3. d4 {[%clk 0:03:01.4]} 3... cxd4 {[%clk 0:03:00.2]}
4. Nxd4 {[%clk 0:03:01.1]} 4... Nc6 {[%clk 0:03:00.9]} 5. Nc3 {[%clk 0:03:01.6]}
5... d6 {[%clk 0:03:00.2]} 6. Bc4 {[%clk 0:03:00.8]} 6... Nf6 {[%clk 0:02:58.9]}
7. Bb3 {[%clk 0:02:59.4]} 7... a6 {[%clk 0:02:57.2]} 8. O-O {[%clk 0:02:59.9]}
8... Be7 {[%clk 0:02:50.6]} 9. Kh1 {[%clk 0:03:00.2]} 9... O-O {[%clk
0:02:45.8]} 10. f4 {[%clk 0:03:00.6]} 10... Qc7 {[%clk 0:02:37.6]} 11. f5 {[%clk
0:02:59.3]} 11... Nxd4 {[%clk 0:02:13.2]} 12. Qxd4 {[%clk 0:02:58.4]} 12... b5
{[%clk 0:02:11.7]} 13. Bg5 {[%clk 0:02:53.7]} 13... h6 {[%clk 0:02:04.2]} 14.
Bh4 {[%clk 0:02:53.5]} 14... e5 {[%clk 0:01:56.7]} 15. Qf2 {[%clk 0:02:46.9]}
15... Bb7 {[%clk 0:01:55.7]} 16. Bxf6 {[%clk 0:02:46.3]} 16... Bxf6 {[%clk
0:01:56.3]} 17. Bd5 {[%clk 0:02:46.5]} 17... b4 {[%clk 0:01:33.2]} 18. Bxb7
{[%clk 0:02:45.5]} 18... Qxb7 {[%clk 0:01:34.1]} 19. Nd5 {[%clk 0:02:45.4]}
19... Bd8 {[%clk 0:01:32.1]} 20. f6 {[%clk 0:02:43.3]} 20... g6 {[%clk
0:01:31.6]} 21. Qh4 {[%clk 0:02:35.1]} 21... h5 {[%clk 0:01:14.9]} 22. Qg5
{[%clk 0:02:29]} 22... Kh7 {[%clk 0:01:13.5]} 23. Rf3 {[%clk 0:02:27.4]} 23...
Rh8 {[%clk 0:00:54.1]} 24. Raf1 {[%clk 0:02:22]} 24... Ra7 {[%clk 0:00:39.1]}
25. Rh3 {[%clk 0:02:02.8]} 25... Kg8 {[%clk 0:00:38.8]} 26. Rb3 {[%clk
0:01:59.7]} 26... a5 {[%clk 0:00:38.4]} 27. a3 {[%clk 0:01:59.4]} 27... Qa6
{[%clk 0:00:34.4]} 28. Rbf3 {[%clk 0:01:53.7]} 28... bxa3 {[%clk 0:00:34]} 29.
bxa3 {[%clk 0:01:53.1]} 29... Qb7 {[%clk 0:00:33.9]} 30. Rb3 {[%clk 0:01:49.5]}
30... Qd7 {[%clk 0:00:33.4]} 31. Rb8 {[%clk 0:01:46.1]} 31... Kh7 {[%clk
0:00:25.3]} 32. h3 {[%clk 0:01:36.6]} 32... a4 {[%clk 0:00:22.6]} 33. Rfb1
{[%clk 0:01:34.1]} 33... Qc6 {[%clk 0:00:13.1]} 34. c3 {[%clk 0:01:26.9]} 34...
Qc4 {[%clk 0:00:12.2]} 35. R8b7 {[%clk 0:01:15.9]} 35... Rxb7 {[%clk 0:00:11.5]}
36. Rxb7 {[%clk 0:01:15.3]} 36... Rf8 {[%clk 0:00:09]} 37. Qe3 {[%clk 0:00:57]}
37... Qf1+ {[%clk 0:00:08.8]} 38. Kh2 {[%clk 0:00:56.8]} 38... Bxf6 {[%clk
0:00:08.1]} 39. Qa7 {[%clk 0:00:42.9]} 39... Bg7 {[%clk 0:00:08.2]} 40. Qxa4
{[%clk 0:00:39.3]} 40... Bh6 {[%clk 0:00:07.6]} 41. Qa7 {[%clk 0:00:35.5]} 41...
Bf4+ {[%clk 0:00:07.6]} 42. Nxf4 {[%clk 0:00:35.7]} 42... Qxf4+ {[%clk
0:00:08.5]} 43. Kh1 {[%clk 0:00:35.5]} 43... Qf1+ {[%clk 0:00:08.2]} 44. Kh2
{[%clk 0:00:36]} 44... Qf4+ {[%clk 0:00:08.3]} 45. Kh1 {[%clk 0:00:33.3]} 45...
Qf1+ {[%clk 0:00:08.5]} 46. Qg1 {[%clk 0:00:30]} 46... Qf4 {[%clk 0:00:08.7]}
47. Qe1 {[%clk 0:00:28]} 47... Kg7 {[%clk 0:00:08.8]} 48. a4 {[%clk 0:00:27.6]}
48... Rc8 {[%clk 0:00:06.3]} 49. a5 {[%clk 0:00:26.1]} 49... Rc4 {[%clk
0:00:06.4]} 50. a6 {[%clk 0:00:20.3]} 50... Rxe4 {[%clk 0:00:05.8]} 51. Qb1
{[%clk 0:00:16.5]} 51... Re2 {[%clk 0:00:03.6]} 52. a7 {[%clk 0:00:13.1]} 52...
Qf2 {[%clk 0:00:03.8]} 53. Qg1 {[%clk 0:00:11]} 1-0